[Event "FIDE WCCC Open-12 2024"]
[Site "Montesilvano"]
[Date "2024.11.18"]
[Round "2.66"]
[White "Mamarasulov, Husan"]
[Black "Chia, Yu Zhe Ashton"]
[Result "0-1"]
[ECO "A60"]
[WhiteElo "1407"]
[BlackElo "2252"]
[PlyCount "56"]
[EventDate "2024.11.18"]
[EventType "swiss"]
[EventCountry "ITA"]
[TimeControl "5400+30"]

1. d4 {[%emt 0:00:01]} Nf6 {[%emt 0:00:04]} 2. c4 {[%emt 0:00:20]} c5 {[%emt 0:00:07]} 3. d5 {[%emt 0:00:05]} e6 {[%emt 0:00:03]} 4. Nc3 {[%emt 0:01:16]} exd5 {[%emt 0:00:03]} 5. cxd5 {[%emt 0:00:14]} d6 {[%emt 0:00:02]} 6. e4 {[%emt 0:01:03]} Be7 {[%emt 0:00:05]} 7. Nf3 {[%emt 0:01:11]} O-O {[%emt 0:00:04]} 8. Be2 {[%emt 0:01:29]} Re8 {[%emt 0:00:04]} 9. O-O {[%emt 0:01:14]} Bf8 {[%emt 0:00:04]} 10. a4 {[%emt 0:03:16]} Bg4 {[%emt 0:03:35]} 11. a5 {[%emt 0:07:28]} Nbd7 {[%emt 0:08:57]} 12. a6 {[%emt 0:09:19]} bxa6 {[%emt 0:05:30]} 13. Rxa6 {[%emt 0:05:31]} Nxe4 {[%emt 0:11:30]} 14. Nxe4 {[%emt 0:00:21]} Rxe4 {[%emt 0:00:02]} 15. Be3 {[%emt 0:04:48]} Ne5 {[%emt 0:11:08]} 16. Nxe5 {[%emt 0:03:30]} Bxe2 {[%emt 0:06:45]} 17. Qxe2 {[%emt 0:00:20]} Rxe5 {[%emt 0:00:13]} 18. Qf3 {[%emt 0:04:40]} Qc8 {[%emt 0:01:23]} 19. Rfa1 {[%emt 0:04:31]} Qb7 {[%emt 0:00:16]} 20. Bf4 {[%emt 0:00:44]} Qxa6 {[%emt 0:01:12]} 21. Rf1 {[%emt 0:05:40]} Re2 {[%emt 0:02:29]} 22. Qc3 {[%emt 0:06:07]} Rae8 {[%emt 0:00:39]} 23. Be3 {[%emt 0:04:35]} Qb7 {[%emt 0:00:11]} 24. Rb1 {[%emt 0:05:33]} Qxd5 {[%emt 0:00:19]} 25. Kf1 {[%emt 0:00:19]} R8xe3 {[%emt 0:00:17]} 26. Qa5 {[%emt 0:02:54]} Qd3 {[%emt 0:01:32]} 27. fxe3 {[%emt 0:03:21]} Rxb2+ {[%emt 0:00:06]} 28. Kg1 {[%emt 0:01:32]} Qxb1+ {[%emt 0:00:03]} 0-1

[Event "FIDE WCCC Open-12 2024"]
[Site "Montesilvano"]
[Date "2024.11.18"]
[Round "2.72"]
[White "Farzaleev, Daniyar"]
[Black "Williams, Henry"]
[Result "1-0"]
[ECO "A87"]
[WhiteElo "1622"]
[BlackElo "1695"]
[PlyCount "87"]
[EventDate "2024.11.18"]
[EventType "swiss"]
[EventCountry "ITA"]
[TimeControl "5400+30"]

1. d4 {[%emt 0:00:12]} f5 {[%emt 0:00:06]} 2. Nf3 {[%emt 0:00:04]} Nf6 {[%emt 0:00:05]} 3. g3 {[%emt 0:00:03]} g6 {[%emt 0:00:03]} 4. Bg2 {[%emt 0:00:03]} Bg7 {[%emt 0:00:11]} 5. O-O {[%emt 0:00:06]} O-O {[%emt 0:00:07]} 6. c4 {[%emt 0:00:03]} d6 {[%emt 0:00:05]} 7. Nc3 {[%emt 0:00:04]} Nbd7 {[%emt 0:00:15]} 8. Qb3 {[%emt 0:01:30]} h6 {[%emt 0:00:29]} 9. Ne1 {[%emt 0:00:50]} Re8 {[%emt 0:00:46]} 10. Bxb7 {[%emt 0:04:18]} Rb8 {[%emt 0:00:36]} 11. c5+ {[%emt 0:00:03]} Kh7 {[%emt 0:01:01]} 12. c6 {[%emt 0:00:04]} Bxb7 {[%emt 0:05:22]} 13. cxb7 {[%emt 0:00:12]} c6 {[%emt 0:01:16]} 14. Nf3 {[%emt 0:04:58]} Qc7 {[%emt 0:00:59]} 15. Qc2 {[%emt 0:02:45]} Qxb7 {[%emt 0:00:59]} 16. b3 {[%emt 0:00:21]} e6 {[%emt 0:01:39]} 17. Ba3 {[%emt 0:00:27]} d5 {[%emt 0:00:42]} 18. Rac1 {[%emt 0:00:22]} Rbc8 {[%emt 0:01:19]} 19. Na4 {[%emt 0:01:54]} Nb6 {[%emt 0:04:14]} 20. Nc5 {[%emt 0:00:40]} Qc7 {[%emt 0:03:15]} 21. Ne5 {[%emt 0:01:05]} Nfd7 {[%emt 0:01:17]} 22. Ncxd7 {[%emt 0:05:42]} Nxd7 {[%emt 0:01:11]} 23. Qxc6 {[%emt 0:00:14]} Qxc6 {[%emt 0:00:36]} 24. Nxc6 {[%emt 0:00:06]} Rc7 {[%emt 0:04:22]} 25. e3 {[%emt 0:00:12]} Rec8 {[%emt 0:01:08]} 26. Nxa7 {[%emt 0:01:04]} Rxc1 {[%emt 0:01:36]} 27. Rxc1 {[%emt 0:00:04]} Ra8 {[%emt 0:02:19]} 28. Rc7 {[%emt 0:00:16]} Rd8 {[%emt 0:04:15]} 29. Be7 {[%emt 0:00:03]} Rg8 {[%emt 0:00:32]} 30. Rxd7 {[%emt 0:00:03]} g5 {[%emt 0:01:03]} 31. Bf6 {[%emt 0:00:02]} Kh8 {[%emt 0:00:28]} 32. Bxg7+ {[%emt 0:00:23]} Rxg7 {[%emt 0:00:10]} 33. Rxg7 {[%emt 0:00:04]} Kxg7 {[%emt 0:00:04]} 34. a4 {[%emt 0:00:07]} Kg6 {[%emt 0:00:11]} 35. a5 {[%emt 0:00:04]} h5 {[%emt 0:00:04]} 36. a6 {[%emt 0:00:02]} h4 {[%emt 0:00:29]} 37. Nc6 {[%emt 0:00:04]} hxg3 {[%emt 0:00:04]} 38. hxg3 {[%emt 0:00:03]} g4 {[%emt 0:00:12]} 39. a7 {[%emt 0:00:02]} Kg5 {[%emt 0:26:59]} 40. a8=Q {[%emt 1:21:51]} Kf6 {[%emt 0:11:34]} 41. Qf8+ {[%emt 0:00:00]} Kg6 {[%emt 0:05:18]} 42. Ne5+ {[%emt 0:00:00]} Kh5 {[%emt 0:01:22]} 43. Qg7 {[%emt 0:00:00]} f4 {[%emt 0:01:32]} 44. Qg6# {[%emt 0:00:00]} 1-0

[Event "FIDE WCCC Open-12 2024"]
[Site "Montesilvano"]
[Date "2024.11.18"]
[Round "2.73"]
[White "Sharafutdinov, Timur"]
[Black "Anuzis, Finas"]
[Result "1-0"]
[ECO "C42"]
[WhiteElo "1925"]
[BlackElo "1614"]
[PlyCount "49"]
[EventDate "2024.11.18"]
[EventType "swiss"]
[EventCountry "ITA"]
[TimeControl "5400+30"]

1. e4 {[%emt 0:00:03]} e6 {[%emt 0:00:13]} 2. d4 {[%emt 0:00:11]} d5 {[%emt 0:00:11]} 3. exd5 {[%emt 0:00:10]} exd5 {[%emt 0:00:28]} 4. c4 {[%emt 0:00:15]} dxc4 {[%emt 0:01:56]} 5. Bxc4 {[%emt 0:00:17]} Nf6 {[%emt 0:01:05]} 6. Nf3 {[%emt 0:02:16]} Be7 {[%emt 0:01:26]} 7. O-O {[%emt 0:00:18]} O-O {[%emt 0:00:38]} 8. Nc3 {[%emt 0:01:17]} Bg4 {[%emt 0:02:05]} 9. Bf4 {[%emt 0:02:42]} c5 {[%emt 0:04:47]} 10. d5 {[%emt 0:02:15]} Nbd7 {[%emt 0:03:35]} 11. d6 {[%emt 0:00:34]} Re8 {[%emt 0:08:36]} 12. dxe7 {[%emt 0:01:33]} Qxe7 {[%emt 0:05:45]} 13. Bd6 {[%emt 0:05:01]} Bxf3 {[%emt 0:01:31]} 14. gxf3 {[%emt 0:00:50]} Qd8 {[%emt 0:03:41]} 15. Qb3 {[%emt 0:02:23]} Rf8 {[%emt 0:04:13]} 16. Bxf8 {[%emt 1:18:25]} Kxf8 {[%emt 0:00:20]} 17. Ne4 {[%emt 0:00:00]} Ne5 {[%emt 0:05:03]} 18. Nxf6 {[%emt 0:00:00]} Qxf6 {[%emt 0:02:06]} 19. Bd5 {[%emt 0:00:00]} c4 {[%emt 0:07:15]} 20. Qxb7 {[%emt 0:00:00]} Rd8 {[%emt 0:04:17]} 21. Rae1 {[%emt 0:00:00]} Qf4 {[%emt 0:02:21]} 22. Rxe5 {[%emt 0:00:00]} Qf6 {[%emt 0:04:34]} 23. Rfe1 {[%emt 0:00:00]} Qg6+ {[%emt 0:00:00]} 24. Kh1 {[%emt 0:00:00]} Qf6 {[%emt 0:00:00]} 25. Qb4+ {[%emt 0:00:00]} 1-0